Cogmind - Beta 11.1 @@@ ROGUE MODE // 2022.12.05 @ 03:36:35 Player: daddywarlord Result: Destroyed by Y-45 Defender with Heavy Assault Rifle Performance ------------- Evolutions (1) 500 Regions Visited (3) 600 Robots Destroyed (36) 180 Value Destroyed (920) 920 Prototype IDs (0) 0 Alien Tech Used (0) 0 Bonus (35) 35 TOTAL SCORE: 2235 Bonus ------- High Alert Combat Kills 35 Cogmind --------- Core Integrity 0/400 Matter 274/300 Energy 77/100 System Corruption 0% Temperature Cool (26) Movement Core (200) Ox3 Location -9/Mines Parts ------- > --- POWER (1) -------- (None) > --- PROPULSION (3) --- (None) > --- UTILITY (3) ------ Small Storage Unit Sensor Array > --- WEAPON (2) ------- Improved Light Cannon > --- INVENTORY (8) ---- (None) Peak State ------------ > --- POWER ------------ Ion Engine > --- PROPULSION ------- Aluminum Leg Aluminum Leg Aluminum Leg > --- UTILITY ---------- Small Storage Unit Sensor Array > --- WEAPON ----------- Particle Cannon Heavy Assault Rifle > --- INVENTORY -------- Ion Engine Aluminum Leg [Rating: 10] Favorites ----------- Power Ion Engine Engine Ion Engine Propulsion Aluminum Leg Leg Aluminum Leg Utility Small Storage Unit Device Sensor Array Storage Small Storage Unit Weapon Light Cannon Energy Cannon Particle Cannon Ballistic Gun Assault Rifle Ballistic Cannon Light Cannon Build | -11 -10 -9 -9 ------- Run | Scr Mat Mat Min Slots Evolved 2 | . . 2 . Power . | . . . . Propulsion 1 | . . 1 . Utility 1 | . . 1 . Weapon . | . . . . Parts Attached 15 | 6 2 6 1 Power 2 | 1 . 1 . Engine 2 | 1 . 1 . Core . | . . . . Reactor . | . . . . Propulsion 5 | 2 . 3 . Treads . | . . . . Leg 5 | 2 . 3 . Wheel . | . . . . Hover . | . . . . Flight . | . . . . Utility 2 | 1 1 . . Device 1 | . 1 . . Storage 1 | 1 . . . Processor . | . . . . Hackware . | . . . . Protection . | . . . . Artifact . | . . . . Weapon 6 | 2 1 2 1 Energy Gun . | . . . . Energy Cannon 1 | . . 1 . Ballistic Gun 3 | 2 . 1 . Ballistic Cannon 2 | . 1 . 1 Launcher . | . . . . Special Weapon . | . . . . Impact Weapon . | . . . . Slashing Weapon . | . . . . Piercing Weapon . | . . . . Special Melee Weapon . | . . . . Unidentified Prototypes . | . . . . Parts Lost 10 | . . 7 3 Power 2 | . . 2 . Propulsion 5 | . . 4 1 Utility . | . . . . Weapon 3 | . . 1 2 Highest Loss Streak 3 | . . 3 3 To Critical Strikes . | . . . . Average Slot Usage (%) 84 | . 99 81 52 Engine 10 | . 14 10 . Leg 25 | . 28 27 10 Device 11 | . 13 11 11 Storage 12 | . 14 11 11 Energy Cannon 6 | . . 9 10 Ballistic Gun 10 | . 20 4 8 Ballistic Cannon 7 | . 7 8 . Naked Turns . | . . . . Heaviest Build 18 | 13 16 18 13 Greatest Support 30 | 20 20 30 10 Greatest Overweight (x) 1 | . . 1 1 Average Overweight (x) . | . . . . Largest Inventory Capacity 8 | 8 8 8 8 Average Capacity 7 | 6 8 8 8 Most Carried 4 | 3 2 4 1 Average Carried 1 | . 1 2 . Final Capacity 8 | 8 8 8 8 Final Carried 2 | 1 2 . . Class Distribution -------------------- 100% | Mutant Dominant Class ---------------- Mutant | -10/Materials Mutant | -9/Materials Mutant | -9/Mines Resources | -11 -10 -9 -9 ----------- Run | Scr Mat Mat Min Matter Collected 597 | 260 87 247 3 Remotely . | . . . . Salvage Created 1071 | . 180 891 . Parts 80 | . 14 66 . Haulers Intercepted 1 | . 1 . . Recyclers Shooed 1 | . . 1 . Parts Field Recycled . | . . . . Retrieved Matter . | . . . . Parts Self-Destructed . | . . . . Prevented . | . . . . Kills | -11 -10 -9 -9 ------- Run | Scr Mat Mat Min Combat Hostiles Destroyed 30 | . 4 26 . Guns 9 | . 4 5 . Cannons 21 | . . 21 . Classes Destroyed 9 | . 4 5 . Worker 1 | . . 1 . Tunneler 1 | . . 1 . Hauler 1 | . 1 . . Operator 1 | . . 1 . Watcher 2 | . 2 . . Swarmer 10 | . 3 7 . Grunt 15 | . 1 14 . Brawler 1 | . . 1 . Sentry 4 | . . 4 . Best Kill Streak 6 | . 2 6 . Combat Bots Only 6 | . 2 6 . Max Kills in Single Turn 2 | . 1 2 . Gunslinging . | . . . . Exploded . | . . . . Melee . | . . . . Uniques/NPCs Destroyed . | . . . . Combat | -11 -10 -9 -9 -------- Run | Scr Mat Mat Min Damage Taken 1521 | . 94 956 471 Core 420 | . 7 136 277 Absorbed by Shields . | . . . . Core Remaining (%) 98 | 100 97 . . Volleys Fired 84 | . 16 57 11 Largest 2 | . 2 2 2 Hottest 103 | . 55 103 91 Shots Fired 150 | . 32 105 13 Gun 53 | . 27 24 2 Cannon 97 | . 5 81 11 Launcher . | . . . . Special . | . . . . Kinetic 99 | . 32 61 6 Thermal 51 | . . 44 7 Explosive . | . . . . Electromagnetic . | . . . . Robot Hit Streak 13 | . 8 13 9 Robot Miss Streak 5 | . 5 5 1 Penetration Max . | . . . . Secondary Targets . | . . . . Shots Hit Robots 92 | . 20 61 11 Core Hits 44 | . 11 33 . Critical Kills 1 | . . 1 . Critical Parts Destroyed . | . . . . Critical Strikes 3 | . . 3 . Destroy 1 | . . 1 . Blast 2 | . . 2 . Melee Attacks . | . . . . Impact . | . . . . Slashing . | . . . . Piercing . | . . . . Sneak Attacks . | . . . . Combat Hostiles . | . . . . Follow-up Attacks . | . . . . Damage Inflicted 1836 | . 255 1339 242 Guns 464 | . 180 269 15 Cannons 1362 | . 74 1064 224 Explosions . | . . . . Melee . | . . . . Ramming 10 | . 1 6 3 Kinetic 1131 | . 254 781 96 Thermal 695 | . . 552 143 Explosive . | . . . . Electromagnetic . | . . . . Impact . | . . . . Slashing . | . . . . Piercing . | . . . . Highest Corruption . | . . . . Average Corruption . | . . . . Corruption Purged . | . . . . Corruption Blocked . | . . . . Overload Shots . | . . . . Overflow Damage . | . . . . Projectiles . | . . . . Explosions . | . . . . Melee . | . . . . Knockbacks 6 | . 1 5 . Impact . | . . . . Kinetic 6 | . 1 5 . Secondary . | . . . . Self-Inflicted Damage . | . . . . Shots . | . . . . Rammed . | . . . . Targets Rammed 4 | . 1 2 1 Kicked 4 | . 1 2 1 Crushed . | . . . . Highest Temperature 267 | . 9 267 147 Average Temperature 89 | . 9 94 57 Received Heat Transfer 675 | . 27 477 171 Effects 2 | . . 2 . Energy Bleed 1 | . . 1 . Interference 1 | . . 1 . Siege Activations . | . . . . Robots Corrupted . | . . . . Combat Hostiles . | . . . . Parts Fried . | . . . . Impact Corruptions . | . . . . Robots Melted . | . . . . Combat Hostiles . | . . . . Parts Melted . | . . . . Heat Transferred 1258 | . . 999 259 Parts Sabotaged . | . . . . Parts Stolen . | . . . . Parts Stripped . | . . . . Power Chain Reactions . | . . . . Missiles Intercepted . | . . . . Alert | -11 -10 -9 -9 ------- Run | Scr Mat Mat Min Peak Influence 469 | . 181 469 197 Initial 182 | . . . 182 Average 165 | . 108 212 181 Maximum Alert Level 2 | . . 2 . Low Security (%) 76 | 100 100 54 100 Level 1 20 | . . 39 . Level 2 3 | . . 5 . Level 3 . | . . . . Level 4 . | . . . . Level 5 . | . . . . High Security . | . . . . Max Security . | . . . . Squads Dispatched 1 | . . 1 . Investigation . | . . . . Extermination . | . . . . Reinforcement 1 | . . 1 . Assault . | . . . . Garrison . | . . . . Intercept . | . . . . Searches Triggered . | . . . . Construction Impeded . | . . . . Haulers Reinforced . | . . . . Active Scanning Responses . | . . . . Cargo Convoy Interrupts . | . . . . Stealth | -11 -10 -9 -9 --------- Run | Scr Mat Mat Min Distress Signals 4 | . 2 2 . Communications Jammed . | . . . . Distress Signals . | . . . . Times Spotted 50 | . 13 35 2 Peak Tracking Total 6 | . 5 6 2 Tactical Retreats 3 | . 2 1 . Traps | -11 -10 -9 -9 ------- Run | Scr Mat Mat Min Traps Triggered . | . . . . Indirectly . | . . . . Trap Hack Attempts . | . . . . Triggered . | . . . . Disarmed . | . . . . Reprogrammed . | . . . . Reused . | . . . . Traps Extracted . | . . . . Installed . | . . . . Triggered . | . . . . Machines | -11 -10 -9 -9 ---------- Run | Scr Mat Mat Min Machines Disabled 1 | . . 1 . Max in Single Turn 1 | . . 1 . Machines Sabotaged . | . . . . Garrisons Compromised . | . . . . Overloaded Fab Kills . | . . . . Hacking | -11 -10 -9 -9 --------- Run | Scr Mat Mat Min Machines Accessed . | . . . . Terminals . | . . . . Fabricators . | . . . . Repair Stations . | . . . . Recycling Units . | . . . . Scanalyzers . | . . . . Garrison Access . | . . . . Total Hacks . | . . . . Successful . | . . . . Failed . | . . . . Catastrophic . | . . . . Database Lockouts . | . . . . Manual . | . . . . Terminals . | . . . . Fabricators . | . . . . Repair Stations . | . . . . Recycling Units . | . . . . Scanalyzers . | . . . . Garrison Access . | . . . . Terminal Hacks . | . . . . Fabricator Hacks . | . . . . Repair Station Hacks . | . . . . Recycling Unit Hacks . | . . . . Scanalyzer . | . . . . Garrison Access Hacks . | . . . . Unauthorized Hacks . | . . . . Terminals . | . . . . Fabricators . | . . . . Repair Stations . | . . . . Recycling Units . | . . . . Scanalyzers . | . . . . Garrison Access . | . . . . Data Cores Recovered . | . . . . Used . | . . . . Hacking Detections . | . . . . Full Trace Events . | . . . . Feedback Events . | . . . . Feedback Blocked . | . . . . Robot Schematics Acquired . | . . . . Robots Built . | . . . . Authchips . | . . . . Time . | . . . . Total Robot Build Rating . | . . . . Part Schematics Acquired . | . . . . Parts Built . | . . . . Authchips . | . . . . Time . | . . . . Total Part Build Rating . | . . . . Parts Repaired . | . . . . Time . | . . . . Parts Recycled . | . . . . Recycled Matter . | . . . . Retrieved Matter . | . . . . Retrieved Components . | . . . . Parts Scanalyzed . | . . . . Part Schematics Acquired . | . . . . Parts Damaged . | . . . . Bothacking | -11 -10 -9 -9 ------------ Run | Scr Mat Mat Min Used RIF Installer . | . . . . Robots Hacked . | . . . . Non-combat . | . . . . Combat . | . . . . Robot Hacks Applied . | . . . . Relay Couplers Released . | . . . . Fabnet Peak Effective % . | . . . . Robots Rewired . | . . . . Allies Hacked . | . . . . Hacks Repelled . | . . . . Allies | -11 -10 -9 -9 -------- Run | Scr Mat Mat Min Total Allies . | . . . . Largest Group . | . . . . Highest-Rated Group . | . . . . Highest-Rated Ally . | . . . . Total Orders . | . . . . Ally Attacks . | . . . . Total Damage . | . . . . Kills . | . . . . Allies Corrupted . | . . . . Allies Melted . | . . . . Intel | -11 -10 -9 -9 ------- Run | Scr Mat Mat Min Robot Analysis Total . | . . . . Derelict Logs Recovered 1 | . . . 1 Drone Launches . | . . . . Drone Recoveries . | . . . . Exploration | -11 -10 -9 -9 ------------- Run | Scr Mat Mat Min Turns Passed 1421 | 68 457 748 148 Spaces Moved 805 | 52 325 363 65 Core 11 | 9 . . 2 Treads . | . . . . Legs 794 | 43 325 363 63 Wheels . | . . . . Hover . | . . . . Flight . | . . . . Fastest Speed 50 | 50 120 120 100 Average Speed 125 | 107 120 121 186 Slowest Speed 190 | 120 120 190 190 Overloaded Moves . | . . . . Propulsion Burnouts . | . . . . Robots Hopped . | . . . . Cave-ins Triggered . | . . . . Exploration Rate (%) 25 | 4 51 27 18 Regions Visited 3 Branch Regions 1 Pre-discovered Areas 1 | . . . 1 Known Exits Taken . | . . . . Unknown Exits Taken 3 | 1 1 1 . Scrap Searched 1 | . . . 1 Spaces Dug . | . . . . Terrain Destroyed . | . . . . Melee . | . . . . Projectile . | . . . . AOE . | . . . . Terrain Rammed . | . . . . Walls Destroyed . | . . . . Machines Disabled . | . . . . Actions | -11 -10 -9 -9 --------- Run | Scr Mat Mat Min Total 1072 | 64 362 567 79 Wait 142 | . 15 127 . Move 802 | 51 324 362 65 Hop . | . . . . Pick Up 19 | 7 3 8 1 Fast Attach . | . . . . Attach 15 | 6 2 6 1 Detach . | . . . . Swap . | . . . . Drop 6 | . 1 5 . Fire 84 | . 16 57 11 Melee . | . . . . Ram . | . . . . Kick 4 | . 1 2 1 Crush . | . . . . Escape Stasis . | . . . . Rewire . | . . . . Trap . | . . . . Miscellaneous . | . . . . Route ------- -11/Scrapyard -10/Materials (discovered 2 exits: *Mat x2) -9/Materials -9/Mines (discovered 1 exit: [*Mat]) History --------- Turn | Location | Event 3 | -11/Scrapyard | Discovered new exit (range 15) 69 | -11/Scrapyard | Entered Materials 241 | -10/Materials | Discovered new exit (range 10) 304 | -10/Materials | Build established: Mutant 438 | -10/Materials | Discovered new exit (range 13) 526 | -10/Materials | Entered another Materials area 526 | -9/Materials | Evolved 2 slots: Propulsion x1, Utility x1 1214 | -9/Materials | Discovered new exit (range 16) 1221 | -9/Materials | Lost 3 parts (1p2n) 1274 | -9/Materials | Entered Mines 1275 | -9/Mines | Met a Derelict bent on vengeance 1365 | -9/Mines | Discovered new exit (range 10) 1405 | -9/Mines | Core integrity fell below 50% 1414 | -9/Mines | Core integrity fell below 20% 1422 | -9/Mines | Destroyed by Y-45 Defender with Heavy Assault Rifle Last Messages --------------- 01259_ Acquired 8 matter. 01263_ K-01 Serf collects debris. LOCATION=UNKNOWN GOAL=ESCAPE Something is scanning the area. 01285_ Searching scrap... 01285_ Found Sensor Array. 01285_ Found Tractor Beam. 01285_ Found 25 Matter. 01286_ Acquired 3 matter. 01310_ Kicked T-07 Excavator. 01312_ Acquired derelict log, extracted data. World map updated: -10/Materials. 01365_ EXIT=FOUND 01398_ Hvy. Assault Rifle destroyed. 01399_ Critical hit (Burn: +37). 01410_ Aluminum Leg destroyed. 01410_ Particle Cannon destroyed. 01410_ Critical hit (Burn: +37). 01413_ Acquired Imp. Light Cannon. Map ----- +----------------------------------------------------+ | | | | | | | | | | | | | | | | | | | | | | | | | | | | | | | ?????????????????????????????????????????????????? | | ?????????????????????????????????????????????????? | | ?????????????????????????????????????????????????? | | ???????????????????????????########??????????????? | | ???????????????????????????# #??????????????? | | ???????????????????????##### #??????????????? | | ??????????????????????##!!## ####???????????? | | ??????????????????????#"[! # #???????????? | | ??????????????????????# Y% / #??????????????? | | ??????????????????????# Y g #??#???????????? | | ??????????????????????#"[@ # ## ###?????????? | | ??????????????????????##!|## < #?????????? | | ???????????????????????##### #### #?????????? | | ???????????????????????????##### ##??????????????? | | ???????????????????????????????# #???????????????? | | ???????????????????????????????# #???????????????? | | ?????????????????????????####??# #???????????????? | | ???????????????????#?????# ##?# #???????????????? | | ???????????????????# #### #?# #???????????????? | | ???????????????????# ### #???????????????? | | ???????????????????# ## ##### #????????? | | ????????????????????????## #????????? | | ???????????????########## #????????? | | ?????????????# ######## ###????????? | | ???????????????####### # ####????????#??????????? | | ?????????????????????# ####??????????????????????? | | ?????????????????????# #?????????????????????????? | | ?????????????????????# #?????????????????????????? | | ?????????????????????# #?????????????????????????? | | ?????????????????????# #?????????????????????????? | | ?????????????????????# #?????????????????????????? | | ????????????????###### #?????????????????????????? | | ????????????????# #?????????????????????????? | | ????????????????# ## ###?????????????????????????? | | ????????????????# ## #???????????????????????????? | +----------------------------------------------------+ Best States ------------- Heat Dissipation 28 Energy Generation 10 Energy Capacity 250 Matter Stores 300 Matter Capacity 300 Sight Range 16 Robot Scan Range 14 Terrain Scan Density 10 Evasion (%) 55 Item Schematics ----------------- None Robot Schematics ------------------ None Fabricated ------------ Nothing Alien Tech Used ----------------- None Achievements -------------- None Challenges ------------ None Game ------ Seed SwordAntimissileStick Manual? 0 Play Time 00:19:41 Cumulative 5.5 hours Start 2022.12.05 @ 03:15:16 End 2022.12.05 @ 03:36:35 Sessions 1 Manual Loads 0 Difficulty Rogue Special Mode None Game No. 16 Rogue 16 Adventurer 0 Explorer 0 Win Type - Total 0 Types 0/0/0/0/0/0/0/0/0 Lore% 1 Gallery% 9 Achievement% 4 Wizard Run 0 Options --------- ASCII 0 Keyboard 0 Movement Mouse Keybinds 0 Fullscreen 1 Font 18/SmallcapsGlow Map View 76x50 Tactical HUD 1 Map Filters NONE Filters NONE Steam 1 RUN: 4b1708be-687c-4c4b-bc13-c240fc477122